bitfinex-derivatives/quotes_ETHF0:USTF0_20250902
["timestamp","ask_amount","ask_price","bid_price","bid_amount"]
[1756844112678,3.2078,4297.9,4295.8,0.3096]
[1756844112679,0.1223,4297.5,4295.8,0.3096]
[1756844112879,3.2078,4296.7,4295.3,3.5174]
[1756844113079,0.1223,4296.5,4295.3,3.5174]
[1756844113283,0.3127,4296.3,4295.3,3.2078]
[1756844113483,0.1223,4296.5,4295.3,3.2078]
[1756844113484,0.3127,4296.1,4295.3,3.4568]
[1756844113679,0.3127,4295.8,4295.3,3.2078]
[1756844113889,0.1223,4296.0,4294.8,3.2078]
[1756844113890,3.2078,4295.4,4294.8,3.2078]
[1756844114079,0.3127,4295.3,4294.8,3.2078]
[1756844114280,3.2078,4295.4,4294.8,3.2078]
[1756844114479,0.3127,4295.3,4294.8,3.2078]
[1756844114685,0.3127,4295.3,4294.5,0.249]
[1756844114985,0.1223,4296.0,4294.6,3.5174]
[1756844115188,0.87553265,4295.9,4295.2,0.3096]
[1756844115487,0.3127,4295.9,4295.2,0.3096]
[1756844116087,0.3127,4296.3,4295.2,0.3096]
[1756844116288,0.56340767,4296.2,4295.3,0.3096]
[1756844116489,3.2078,4296.7,4295.8,0.3096]
[1756844116783,0.56344239,4296.6,4296.5,0.3096]
[1756844117188,0.3127,4296.9,4296.5,0.3096]
[1756844117377,0.56376098,4296.8,4296.5,0.3096]
[1756844117581,0.56376098,4296.7,4296.1,0.206]
[1756844118594,0.3127,4296.6,4296.1,0.206]
[1756844118787,0.3127,4296.3,4295.7,3.2078]
[1756844119095,0.3127,4296.1,4295.4,0.249]
[1756844119393,0.87695772,4296.0,4295.4,0.249]
[1756844119692,0.56425772,4295.9,4295.4,0.249]
[1756844119885,0.1223,4296.5,4295.8,3.2078]
[1756844120086,0.87722134,4296.4,4295.8,3.2078]
[1756844120282,0.3127,4296.2,4295.8,3.2078]
[1756844120587,0.1223,4296.5,4295.8,3.2078]
[1756844120588,0.3127,4295.9,4295.8,3.2078]
[1756844120787,0.3127,4295.9,4295.4,0.249]
[1756844121094,0.3127,4295.8,4295.4,0.249]
[1756844121295,0.3127,4296.0,4295.4,0.249]
[1756844121586,0.56517713,4295.9,4295.5,0.3096]
[1756844121792,0.56517713,4295.8,4295.5,0.3096]
[1756844122095,0.3127,4295.7,4295.5,0.3096]
[1756844122388,0.3127,4296.4,4295.4,0.249]
[1756844122594,0.3127,4296.2,4295.4,0.249]
[1756844122791,0.56523465,4296.1,4295.6,3.2078]
[1756844122994,0.56523465,4296.0,4295.7,0.3096]
[1756844123195,0.87793465,4295.9,4295.6,3.5174]
[1756844123394,0.56523465,4295.8,4295.6,3.5174]
[1756844124593,0.3127,4295.8,4295.6,3.5174]
[1756844124895,0.1223,4296.5,4295.6,3.2078]
[1756844125084,0.3127,4296.3,4295.6,3.2078]
[1756844125287,0.56533462,4296.2,4295.6,3.2078]
[1756844125495,0.87803462,4296.1,4295.6,3.2078]
[1756844125695,0.56533462,4296.0,4295.7,0.3096]
[1756844125998,0.56533462,4295.9,4295.6,3.2078]
[1756844126188,0.3127,4296.3,4295.7,0.3096]
[1756844126393,0.3127,4296.1,4295.1,0.3096]
[1756844126585,0.3127,4295.9,4295.2,0.248]
[1756844126790,0.3127,4295.7,4295.2,0.248]
[1756844126997,0.56521969,4295.6,4295.2,0.248]
[1756844127189,3.2078,4296.2,4295.2,0.48079999]
[1756844127190,0.3127,4295.8,4295.2,0.48079999]
[1756844127390,0.56519049,4295.7,4295.2,0.248]
[1756844127594,0.3127,4296.1,4295.3,0.3096]
[1756844127793,0.56515984,4296.0,4295.3,0.3096]
[1756844127992,0.87785984,4295.9,4295.3,0.3096]
[1756844128197,0.56515984,4295.8,4295.2,0.248]
[1756844128399,0.3127,4296.1,4295.3,0.3096]
[1756844128697,0.3127,4295.9,4295.3,0.3096]
[1756844128895,0.3127,4295.7,4295.3,0.3096]
[1756844129195,0.3127,4297.3,4295.7,1.04751]
[1756844129493,3.2078,4298.1,4296.6,0.3096]
[1756844129693,0.87765334,4297.9,4297.2,0.3096]
[1756844129991,3.2078,4298.1,4297.4,0.3096]
[1756844130189,0.3127,4298.4,4297.7,0.3096]
[1756844130391,0.56478413,4298.3,4297.8,0.249]
[1756844130591,0.56478413,4298.2,4297.9,0.3096]
[1756844130795,0.3127,4298.2,4297.8,0.249]
[1756844131088,0.3127,4298.2,4297.9,0.3096]
[1756844131294,0.3127,4298.5,4297.9,0.3096]
[1756844131493,0.3127,4298.3,4297.9,0.3096]
[1756844131695,3.2078,4298.7,4297.8,0.249]
[1756844131696,0.3127,4298.6,4297.8,0.249]
[1756844131891,0.3127,4298.4,4297.1,3.2078]
[1756844132096,3.2078,4298.7,4297.3,0.3096]
[1756844132097,0.3127,4298.2,4297.3,0.3096]
[1756844132295,0.3127,4298.2,4297.7,0.3096]
[1756844132494,0.3127,4298.2,4297.7,0.249]
[1756844132897,0.3127,4298.2,4297.8,0.3096]
[1756844133099,0.3127,4299.2,4298.1,3.2078]
[1756844133295,0.3127,4299.2,4298.2,0.5586]
[1756844133692,0.4827,4298.9,4298.2,0.5586]
[1756844134291,0.17,4298.9,4298.3,0.41874]
[1756844134497,0.17,4298.9,4298.4,0.3096]
[1756844134792,0.17,4298.9,4298.6,3.2078]
[1756844134991,0.17,4298.9,4298.8,0.3096]
[1756844135192,2.0,4300.0,4298.9,0.2809]
[1756844135396,2.1223,4300.0,4299.1,3.2078]
[1756844135596,2.0,4300.0,4299.2,0.2809]
[1756844135793,2.0,4300.0,4299.3,3.2078]
[1756844136290,2.0,4300.0,4299.1,0.25]
[1756844136291,0.3127,4301.4,4299.9,3.2078]
[1756844136493,0.3127,4301.2,4300.4,3.2078]
[1756844136697,0.3127,4301.2,4300.5,0.252]
[1756844137391,0.3127,4301.2,4300.5,0.67053]
[1756844137793,0.0511,4301.7,4300.4,3.2078]
[1756844137992,0.3127,4301.4,4300.5,0.252]
[1756844138297,0.1223,4300.5,4299.9,0.1854592]
[1756844138499,0.3127,4300.4,4300.0,0.251]
[1756844138695,0.1223,4300.5,4299.8,3.2078]
[1756844139001,0.1223,4300.5,4299.9,0.251]
[1756844139394,0.3127,4300.4,4299.9,0.251]
[1756844139694,3.3301,4301.0,4300.3,3.2078]
[1756844139695,0.1223,4301.0,4300.3,3.2078]
[1756844139895,0.1223,4301.0,4300.4,0.251]
[1756844140096,0.3127,4300.9,4300.4,0.251]
[1756844140397,0.435,4301.0,4300.4,0.251]
[1756844140598,0.1223,4300.5,4300.3,3.2078]
[1756844140800,0.3127,4300.4,4300.3,3.2078]
[1756844141000,0.3127,4300.4,4300.3,3.4588]
[1756844141405,0.3127,4300.4,4300.3,3.2078]
[1756844141596,0.3127,4300.4,4300.2,0.251]
[1756844141597,0.314,4300.4,4300.2,0.251]
[1756844141794,0.314,4300.4,4300.3,0.251]
[1756844142494,0.1223,4301.0,4300.3,3.4588]
[1756844142699,0.314,4300.8,4300.3,3.4588]
[1756844142899,0.314,4300.9,4300.3,3.4588]
[1756844143198,0.1241,4300.5,4300.3,0.251]
[1756844143391,0.314,4300.4,4300.0,0.41858]
[1756844143592,0.314,4300.9,4300.3,3.2078]
[1756844143789,0.1223,4301.0,4300.4,0.251]
[1756844143997,0.1241,4300.5,4300.4,0.251]
[1756844144198,0.4381,4300.5,4300.4,0.251]
[1756844144602,4.1241,4300.5,4299.9,0.251]
[1756844144794,0.1241,4300.0,4299.8,3.2078]
[1756844144994,0.4381,4299.5,4299.4,30.726]
[1756844145196,0.4381,4300.0,4299.4,31.39564]
[1756844145398,0.4381,4300.0,4299.4,30.977]
[1756844145993,0.1241,4299.5,4299.1,3.2078]
[1756844146194,0.1241,4299.5,4299.2,0.251]
[1756844146396,0.4381,4299.5,4299.2,0.251]
[1756844146605,0.1241,4300.5,4299.9,0.41859]
[1756844146795,0.4381,4300.5,4300.0,3.4588]
[1756844146999,0.314,4300.5,4300.1,0.41857]
[1756844147195,0.1223,4301.0,4300.1,0.41857]
[1756844147400,0.4363,4301.0,4300.1,0.41857]
[1756844147801,0.4363,4301.0,4299.9,3.2078]
[1756844148002,0.314,4300.9,4300.0,0.251]
[1756844148206,0.314,4300.9,4300.0,0.66958]
[1756844148507,0.314,4300.9,4300.2,0.41856]
[1756844148915,0.314,4300.9,4300.0,0.251]
[1756844148916,0.314,4300.9,4300.3,0.41855]
[1756844149105,0.1223,4301.0,4300.4,0.251]
[1756844149304,0.314,4300.9,4300.4,0.251]
[1756844149504,0.1223,4301.0,4300.5,3.2078]
[1756844149505,0.4363,4301.0,4300.5,3.2078]
[1756844149702,0.314,4300.9,4300.5,3.2078]
[1756844150709,0.314,4300.9,4300.6,0.25]
[1756844150906,0.314,4300.9,4300.7,0.25]
[1756844151311,0.1223,4301.0,4300.7,0.25]
[1756844151911,0.314,4300.9,4300.7,0.25]
[1756844152306,0.314,4301.4,4300.7,0.25]
[1756844152813,0.1241,4301.5,4300.6,3.2078]
[1756844153109,0.1241,4301.0,4300.8,0.25]
[1756844153310,0.314,4300.9,4300.6,3.2078]
[1756844153613,0.314,4300.9,4300.6,3.4578]
[1756844153808,0.1241,4301.0,4300.6,3.4578]
[1756844154205,0.314,4300.9,4300.6,3.4578]
[1756844154404,0.1241,4301.0,4300.6,3.4578]
[1756844154811,0.314,4300.9,4300.6,3.4578]
[1756844155420,0.1241,4301.0,4300.6,3.4578]
[1756844155710,3.2078,4300.8,4299.6,3.2078]
[1756844155915,0.1241,4300.0,4299.6,3.2078]
[1756844156423,0.314,4299.9,4299.6,3.2078]
[1756844156807,0.314,4299.9,4298.4,33.9128]
[1756844157111,0.1241,4300.0,4298.4,33.9128]
[1756844157112,0.314,4299.6,4298.4,33.9128]
[1756844157313,0.1241,4299.5,4298.4,33.9128]
[1756844157516,0.314,4299.4,4298.5,0.25]
[1756844157806,0.314,4299.4,4298.4,33.9128]
[1756844157807,0.1241,4299.0,4298.4,3.2078]
[1756844158011,0.4381,4298.5,4298.4,3.2078]
[1756844159315,0.4381,4298.5,4298.1,0.25]
[1756844159316,0.1241,4298.5,4298.1,0.25]
[1756844159507,0.314,4298.4,4298.0,0.25]
[1756844160917,0.1241,4298.0,4297.9,0.25]
[1756844161107,0.4381,4298.0,4297.9,0.25]
[1756844161709,0.314,4298.4,4297.8,0.249]
[1756844162215,3.5218,4298.9,4297.8,0.249]
[1756844162417,3.5218,4298.9,4298.2,3.2078]
[1756844162615,3.5218,4298.9,4297.2,0.18860113]
[1756844162616,3.5218,4298.9,4298.3,0.249]
[1756844162817,3.2078,4298.9,4297.7,3.2078]
[1756844163012,0.314,4298.8,4298.0,0.249]
[1756844163416,0.314,4298.4,4298.0,0.249]
[1756844163921,0.1241,4298.5,4298.0,0.249]
[1756844164117,0.314,4299.0,4298.3,3.2078]
[1756844164320,0.314,4299.0,4298.4,0.249]
[1756844164615,0.314,4298.9,4298.5,0.249]
[1756844164811,0.314,4298.9,4298.1,0.249]
[1756844165920,0.1241,4299.0,4297.7,3.2078]
[1756844166219,0.314,4298.9,4297.8,0.249]
[1756844166615,0.1241,4298.0,4297.7,3.2078]
[1756844166915,0.314,4297.9,4297.7,3.2078]
[1756844167117,3.2078,4298.6,4297.7,3.2078]
[1756844167118,0.314,4298.6,4297.7,3.2078]
[1756844167315,0.4381,4299.0,4298.4,3.2078]
[1756844167515,0.314,4299.0,4298.5,0.249]
[1756844167816,0.314,4299.4,4298.5,0.249]
[1756844169626,0.314,4299.4,4298.4,3.2078]
[1756844170020,0.314,4299.4,4298.5,0.249]
[1756844170822,0.314,4299.4,4298.6,0.249]
[1756844171714,0.314,4299.4,4298.9,3.2078]
[1756844172623,0.2937,4299.9,4298.9,3.2078]
[1756844172823,0.2937,4299.9,4299.0,0.23259]
[1756844173022,0.2937,4299.9,4299.1,0.249]
[1756844174221,0.2937,4299.9,4299.2,0.249]
[1756844174422,0.2937,4299.9,4298.9,3.2078]
[1756844174725,0.2937,4299.9,4299.3,0.249]
[1756844176820,0.2937,4299.9,4299.4,3.2078]
[1756844177019,3.2078,4300.7,4299.4,3.2078]
[1756844177020,0.2937,4300.2,4299.4,3.2078]
[1756844177219,3.2078,4300.7,4299.4,3.2078]
[1756844177430,0.2937,4300.4,4299.4,3.2078]
[1756844177627,0.2937,4300.4,4299.4,3.62644]
[1756844177926,0.2937,4300.9,4299.9,3.2078]
[1756844178129,0.2937,4300.9,4300.4,3.2078]
[1756844178331,0.2937,4300.9,4300.5,0.249]
[1756844178522,0.1241,4301.0,4300.5,0.249]
[1756844178725,0.2937,4300.9,4300.5,0.249]
[1756844180428,0.1252,4300.5,4300.4,3.2078]
[1756844180628,0.4189,4300.5,4300.3,0.248]
[1756844181230,0.1252,4300.5,4300.1,0.248]
[1756844181426,0.2937,4300.4,4300.1,0.248]
[1756844181626,0.1252,4300.5,4300.1,0.248]
[1756844182427,0.4189,4300.0,4299.9,3.2078]
[1756844184530,0.1252,4300.0,4299.0,3.2078]
[1756844184737,0.1252,4299.5,4299.1,0.248]
[1756844185034,0.2937,4299.4,4299.1,0.248]
[1756844185734,0.1252,4299.5,4299.1,0.248]
[1756844186129,0.2937,4299.4,4299.0,3.2078]
[1756844186325,0.2937,4299.4,4299.2,0.248]
[1756844186535,0.1252,4298.5,4298.4,3.2078]
[1756844186838,0.4189,4298.5,4298.4,3.2078]
[1756844187034,0.4189,4298.5,4298.4,3.4558]
[1756844187835,0.4189,4298.5,4298.4,3.2078]
[1756844188538,4.4189,4298.5,4298.4,3.2078]
[1756844190335,4.4189,4298.5,4297.5,3.2078]
[1756844190336,0.1252,4298.0,4297.5,3.2078]
[1756844190537,0.2937,4297.9,4297.5,3.2078]
[1756844190831,0.1252,4298.0,4297.5,3.2078]
[1756844191440,0.2937,4297.9,4297.5,3.2078]
[1756844191642,0.1252,4298.0,4297.5,3.2078]
[1756844192043,0.2937,4297.9,4297.5,3.2078]
[1756844192641,0.1252,4298.0,4297.5,3.2078]
[1756844192835,0.2937,4297.9,4297.5,3.2078]
[1756844193036,0.1252,4298.0,4297.5,3.2078]
[1756844193236,0.1252,4298.0,4297.4,0.247]
[1756844193237,0.1252,4297.5,4297.4,0.247]
[1756844193433,0.4189,4297.5,4297.4,0.247]
[1756844193738,0.4189,4297.5,4297.1,0.18972804]
[1756844193933,0.2937,4297.4,4296.9,3.2078]
[1756844194136,0.4189,4297.0,4296.4,0.18525227]
[1756844194538,0.1252,4296.5,4296.4,0.18525227]
[1756844194738,0.4189,4296.5,4296.4,0.18525227]
[1756844194933,0.2937,4296.4,4296.0,3.2078]
[1756844195436,0.1252,4296.5,4296.0,3.2078]
[1756844195830,0.2937,4296.4,4296.0,3.2078]
[1756844196243,3.2078,4297.1,4296.0,3.2078]
[1756844196244,3.5015,4297.1,4296.1,0.247]
[1756844196438,3.5015,4297.1,4296.5,3.2078]
[1756844196637,0.2937,4297.0,4296.6,0.247]
[1756844196832,0.1252,4296.5,4296.2,0.247]
[1756844197144,0.2937,4296.4,4296.2,0.247]
[1756844198442,0.2937,4296.4,4295.6,30.89827639]
[1756844198443,0.1252,4296.0,4295.7,0.247]
[1756844198842,0.1252,4296.0,4295.6,30.713]
[1756844198843,0.1252,4296.0,4295.6,0.247]
[1756844199245,0.2937,4295.9,4295.6,0.247]
[1756844199750,0.4189,4295.5,4295.4,3.2078]
[1756844199939,3.2078,4296.7,4295.5,0.23279]
[1756844199940,0.2937,4296.6,4295.5,0.23279]
[1756844200247,0.2937,4296.6,4296.5,3.2078]
[1756844200941,3.333,4297.5,4296.5,3.2078]
[1756844201940,0.3114,4296.9,4296.5,3.2078]
[1756844202342,3.333,4297.5,4296.5,3.2078]
[1756844202744,0.3114,4296.9,4296.5,3.2078]
[1756844202939,0.3114,4296.9,4295.1,0.18334449]
[1756844202940,0.3114,4296.8,4296.2,0.248]
[1756844203145,0.128,4296.5,4296.2,0.248]
[1756844203448,0.3114,4296.4,4296.2,0.248]
[1756844204243,0.3114,4296.4,4296.0,3.2078]
[1756844204448,0.128,4296.5,4295.8,3.4558]
[1756844204945,0.3114,4295.9,4295.3,3.2078]
[1756844205244,0.3114,4295.9,4295.8,3.2078]
[1756844206044,0.3114,4296.4,4295.8,3.2078]
[1756844206243,0.3114,4296.4,4295.8,3.4548]
[1756844206444,0.3114,4295.9,4295.8,3.2078]
[1756844208141,0.3114,4295.4,4295.3,0.247]
[1756844209053,0.3114,4295.8,4295.3,0.247]
[1756844209352,3.2078,4295.9,4295.3,0.247]
[1756844211350,0.3114,4295.8,4295.3,0.247]
[1756844211746,3.2078,4295.9,4295.3,0.247]
[1756844211948,0.3114,4296.1,4295.7,3.2078]
[1756844212147,3.2078,4296.7,4295.8,0.247]
[1756844212351,0.3114,4296.4,4295.8,0.247]
[1756844215548,0.3114,4296.9,4296.3,3.2078]
[1756844215748,3.3358,4297.5,4296.4,0.247]
[1756844215953,0.3114,4296.9,4296.4,0.247]
[1756844216150,0.3114,4297.0,4296.8,3.2078]
[1756844216351,0.3114,4297.0,4296.9,0.247]
[1756844217550,0.4394,4297.0,4296.9,0.247]
[1756844218958,0.3114,4297.0,4296.9,0.247]
[1756844220058,0.3114,4297.6,4296.9,0.247]
[1756844220259,0.3114,4297.6,4297.4,3.2078]
[1756844220461,0.3114,4297.6,4297.5,0.246]
[1756844220752,3.2078,4298.7,4297.5,1.0872093]
[1756844220957,0.128,4299.5,4298.0,3.2078]
[1756844220958,3.2078,4299.4,4298.0,3.2078]
[1756844221153,3.2078,4299.4,4298.1,0.246]
[1756844221154,0.3114,4298.9,4298.1,0.246]
[1756844221354,0.128,4299.5,4298.7,3.2078]
[1756844221661,0.3114,4298.9,4298.7,3.2078]
[1756844221857,0.128,4299.5,4298.7,3.2078]
[1756844222257,0.3114,4299.3,4298.7,3.2078]
[1756844222460,0.3114,4299.3,4299.2,3.2078]
[1756844222753,0.4394,4300.0,4299.2,3.4538]
[1756844222954,0.4394,4300.0,4299.4,3.2078]
[1756844223156,0.128,4300.0,4299.5,0.246]
[1756844223361,0.3114,4299.9,4299.5,0.246]
[1756844223662,0.128,4300.0,4299.6,0.246]
[1756844224158,0.3114,4299.9,4299.6,0.246]
[1756844224349,0.128,4300.0,4299.6,0.246]
[1756844224556,0.3114,4299.9,4299.6,0.246]
[1756844224752,0.128,4300.0,4299.4,3.2078]
[1756844225050,0.128,4300.0,4299.5,0.246]
[1756844225252,0.128,4300.5,4299.9,3.2078]
[1756844225557,0.128,4300.5,4300.0,0.246]
[1756844225955,0.3114,4300.4,4300.0,0.246]
[1756844226361,0.3114,4300.9,4300.0,0.246]
[1756844226560,1.25697612,4303.0,4300.6,3.2078]
[1756844226860,0.3114,4303.4,4301.6,3.2078]
[1756844227063,0.3114,4303.4,4303.0,3.2078]
[1756844227359,0.7114,4303.1,4303.0,3.4548]
[1756844227862,0.4,4303.1,4303.0,3.4548]
[1756844228157,0.7114,4303.1,4303.0,3.2078]
[1756844228459,0.7114,4303.1,4303.0,3.4558]
[1756844229161,0.128,4303.0,4302.9,3.2078]
[1756844229361,0.4394,4303.0,4302.9,3.4558]
[1756844229862,0.4394,4303.0,4301.7,30.72]
[1756844229863,0.128,4302.5,4302.4,3.2078]
[1756844230065,0.4394,4302.5,4302.4,3.2078]
[1756844230361,4.4394,4302.5,4302.4,3.2078]
[1756844230757,0.128,4302.0,4301.6,3.2078]
[1756844230959,0.128,4302.0,4301.6,3.4558]
[1756844231660,0.128,4302.0,4301.1,3.2078]
[1756844231857,0.1267,4301.0,4300.6,3.2078]
[1756844232164,0.2961,4300.9,4300.6,3.2078]
[1756844232953,0.1267,4301.0,4300.6,3.2078]
[1756844233159,0.2961,4300.9,4300.6,3.2078]
[1756844233360,0.2961,4300.9,4300.5,0.248]
[1756844233558,0.1267,4301.0,4300.5,0.248]
[1756844233760,0.2961,4300.9,4300.7,3.2078]
[1756844233957,0.2961,4300.9,4300.8,3.2078]
[1756844234160,0.1267,4300.5,4300.0,3.4558]
[1756844234360,0.2961,4300.4,4300.0,3.4558]
[1756844234561,0.2961,4300.9,4300.0,3.4558]
[1756844234763,0.1267,4301.0,4300.7,3.2078]
[1756844235162,0.2961,4300.9,4300.7,3.2078]
[1756844235563,0.1267,4301.0,4300.7,3.2078]
[1756844235969,0.2961,4300.9,4300.7,3.2078]
[1756844236170,0.1267,4301.0,4300.7,3.2078]
[1756844236365,0.2961,4300.9,4300.7,3.2078]
[1756844236763,0.2961,4300.9,4300.7,3.4558]
[1756844237066,0.1267,4301.0,4300.7,3.4558]
[1756844237271,0.2961,4300.7,4299.7,3.2078]
[1756844237471,0.2961,4300.7,4299.8,0.248]
[1756844238766,3.2078,4300.8,4299.7,3.4558]
[1756844238767,0.1267,4300.0,4299.7,3.4558]
[1756844239258,0.1267,4300.0,4299.7,3.2078]
[1756844240062,0.2961,4299.9,4299.7,3.2078]
[1756844240463,0.1267,4300.0,4299.7,3.2078]
[1756844241061,0.2961,4299.9,4299.7,3.2078]
[1756844241268,0.1267,4300.0,4299.7,3.2078]
[1756844241972,0.2961,4299.9,4299.7,3.2078]
[1756844242172,0.1267,4300.0,4299.7,3.2078]
[1756844242370,0.2961,4299.9,4299.7,3.2078]
[1756844242567,0.4228,4300.5,4299.7,3.2078]
[1756844242766,3.2078,4301.3,4300.2,3.2078]
[1756844242767,0.4228,4301.0,4300.2,3.2078]
[1756844243072,0.4228,4301.0,4300.3,0.247]
[1756844243462,0.2961,4301.0,4300.3,0.66552]
[1756844244272,0.2961,4301.0,4300.3,0.247]
[1756844244569,0.2961,4300.9,4300.4,0.247]
[1756844244771,0.1267,4301.0,4300.4,0.247]
[1756844245071,0.2961,4301.1,4300.4,0.247]
[1756844245574,0.2961,4300.9,4300.2,3.2078]
[1756844245774,0.2961,4300.9,4300.3,0.247]
[1756844246163,0.2961,4300.9,4300.2,3.2078]
[1756844246367,0.2961,4300.9,4300.2,3.4548]
[1756844246763,0.2961,4300.9,4300.2,3.2078]
[1756844246969,0.2961,4300.9,4300.3,0.247]
[1756844248072,0.2961,4300.4,4299.7,3.2078]
[1756844248270,0.1267,4300.0,4299.7,3.4548]
[1756844248470,0.2961,4299.9,4299.7,3.4548]
[1756844248877,0.1267,4300.5,4299.8,0.30527525]
[1756844248878,0.2961,4300.4,4299.8,0.30527525]
[1756844249068,0.2961,4300.4,4299.9,0.30531387]
[1756844249273,0.1267,4300.5,4300.0,0.55231387]
[1756844249474,0.1267,4300.5,4300.0,0.247]
[1756844249475,0.2961,4300.4,4300.0,0.247]
[1756844250073,0.1267,4300.5,4300.0,0.247]
[1756844250276,0.2961,4300.4,4300.3,3.2078]
[1756844253684,0.2961,4300.4,4300.3,3.4538]
[1756844253880,0.2961,4300.4,4300.3,3.2078]
[1756844254180,0.4228,4300.0,4299.9,0.246]
[1756844254477,0.4228,4300.0,4299.6,3.2078]
[1756844254478,0.2961,4299.9,4299.6,3.2078]
[1756844254682,0.1267,4300.0,4299.7,0.55236516]
[1756844254882,0.1267,4300.0,4299.0,3.2078]
[1756844255179,0.1267,4299.5,4299.0,3.2078]
[1756844255382,0.2961,4299.4,4299.0,3.2078]
[1756844255776,0.1267,4299.0,4298.5,0.246]
[1756844255974,0.2961,4298.9,4298.6,0.30662751]
[1756844256181,0.2961,4298.9,4298.5,0.246]
[1756844256380,0.1267,4299.0,4298.6,0.30658254]
[1756844256582,0.1267,4299.0,4298.5,0.246]
[1756844256884,0.2961,4298.9,4298.6,0.30661539]
[1756844257078,0.1267,4299.0,4298.7,0.30680612]
[1756844257279,0.1267,4299.0,4298.5,0.246]
[1756844257481,0.1267,4299.0,4298.6,0.30671425]
[1756844257692,3.3345,4299.0,4298.4,3.2078]
[1756844257882,0.4228,4298.5,4298.4,3.2078]
[1756844258781,0.1267,4298.0,4297.5,3.4538]
[1756844259084,0.2961,4297.9,4297.2,0.246]
[1756844259387,0.2961,4297.4,4297.3,0.30724439]
[1756844260287,0.2961,4297.9,4297.3,0.30724439]
[1756844260489,0.2961,4298.4,4297.5,3.2078]
[1756844260691,0.2961,4298.4,4297.6,0.55324439]
[1756844260893,0.2961,4298.4,4297.7,0.30724439]
[1756844261088,0.2961,4298.4,4297.6,0.246]
[1756844261089,0.2961,4298.4,4297.8,0.30724439]
[1756844261282,0.2961,4298.4,4297.9,0.30724439]
[1756844261483,0.2961,4298.4,4298.0,0.30724439]
[1756844261685,0.3221,4298.5,4298.0,3.2078]
[1756844261887,0.4488,4300.0,4298.9,0.41865]
[1756844262189,0.3221,4299.8,4299.6,3.2078]
[1756844262392,0.3221,4299.8,4299.7,0.30698152]
[1756844262784,0.3221,4300.4,4299.7,0.30698152]
[1756844262993,0.3221,4300.4,4300.1,3.2078]
[1756844263184,0.3221,4300.4,4300.2,0.30688862]
[1756844263383,0.3221,4300.4,4300.1,3.2078]
[1756844263384,0.3221,4300.4,4300.3,0.30688862]
[1756844264785,0.3221,4300.4,4300.1,3.2078]
[1756844264986,0.3221,4300.4,4300.2,0.30678811]
[1756844265200,0.1188,4300.5,4300.1,3.2078]
[1756844265490,0.3221,4300.4,4300.2,0.30682442]
[1756844265679,0.3221,4300.4,4300.1,3.2078]
[1756844265883,0.3221,4300.9,4300.2,0.30681024]
[1756844266086,0.3221,4300.9,4300.3,0.30679274]
[1756844266286,0.3221,4300.9,4300.1,3.4538]
[1756844266287,0.1188,4300.5,4300.4,0.30679274]
[1756844266595,0.3221,4300.4,4300.1,3.2078]
[1756844266890,0.3221,4300.3,4298.4,3.2078]
[1756844267085,0.3221,4299.4,4298.5,0.30697317]
[1756844267286,0.4409,4299.5,4298.9,3.2078]
[1756844267491,0.3221,4299.4,4299.0,0.30702254]
[1756844267793,0.1188,4299.5,4298.9,3.4548]
[1756844267794,0.4409,4299.5,4298.9,3.4548]
[1756844267991,0.3221,4299.4,4299.0,0.3070248]
[1756844268292,0.3221,4299.4,4298.9,3.4548]
[1756844268293,0.3221,4299.4,4299.1,0.3070248]
[1756844268486,0.3221,4299.4,4298.9,3.4548]
[1756844268681,0.1188,4299.5,4299.0,0.30700393]
[1756844268881,0.3221,4299.4,4299.1,0.30700393]
[1756844269182,0.3221,4299.4,4298.9,3.2078]
[1756844269385,0.3221,4299.4,4299.0,0.30699586]
[1756844269687,0.1188,4299.5,4298.9,3.2078]
[1756844269896,0.3221,4299.4,4299.0,0.30701064]
[1756844270092,0.1188,4299.5,4298.9,3.2078]
[1756844270591,0.3221,4299.6,4298.9,3.2078]
[1756844270792,0.3221,4299.6,4299.0,0.246]
[1756844272894,0.1188,4300.0,4299.0,0.246]
[1756844272895,0.3221,4299.9,4299.4,3.2078]
[1756844273288,0.1188,4300.0,4299.4,3.2078]
[1756844273591,0.3221,4299.9,4299.4,3.2078]
[1756844273788,0.1188,4300.0,4299.4,3.2078]
[1756844273992,0.4409,4300.0,4299.4,3.2078]
[1756844274390,0.4409,4299.5,4299.4,3.2078]
[1756844276998,4.4409,4299.5,4299.4,3.2078]
[1756844277495,4.67349,4299.5,4299.4,2.8838]
[1756844277690,4.4409,4299.5,4299.4,2.8838]
[1756844277993,4.4409,4299.5,4298.6,0.246]
[1756844278296,0.4409,4299.5,4298.4,0.246]
[1756844279194,0.4409,4299.5,4298.3,3.2078]
[1756844279500,0.1188,4299.5,4298.3,3.4538]
[1756844279800,0.3221,4299.4,4298.3,3.4538]
[1756844280101,0.1188,4299.5,4298.3,3.4538]
[1756844280398,0.1188,4299.5,4297.8,0.41877]
[1756844280399,0.3221,4298.9,4297.8,3.2078]
[1756844280694,0.246,4298.8,4297.8,3.2078]
[1756844280899,3.3266,4298.5,4297.8,3.2078]